fUST/lending_fUST_20240413
["ID","MTS","AMOUNT","RATE_DAILY","PERIOD"]
[322327542,1712955066416,-151.0,0.00075,120]
[322327543,1712955066426,-151.0,0.00075,120]
[322327544,1712955066435,-500.0,0.00075,120]
[322327545,1712955066445,-151.0,0.00075,120]
[322327546,1712955066454,-151.0,0.00075,120]
[322327547,1712955066463,-217.7131,0.00075,30]
[322327548,1712955066473,-163.300486,0.00075342,120]
[322327549,1712955066482,-152.52252607,0.00075457,120]
[322327550,1712955066492,-427.0,0.00075514,120]
[322327551,1712955066501,-500.0,0.0007589,120]
[322327552,1712955066510,-561.66,0.0007589,120]
[322327553,1712955066519,-870.64,0.0007589,120]
[322327554,1712955066528,-500.0,0.0007589,120]
[322327555,1712955066537,-1019.03,0.0007589,120]
[322327556,1712955066547,-500.0,0.0007589,120]
[322327557,1712955066557,-500.0,0.0007589,120]
[322327558,1712955066566,-617.42218079,0.0007589,120]
[322327559,1712955066653,-1581.45,0.0007589,60]
[322327560,1712955066662,-666.72,0.0007589,120]
[322327561,1712955066672,-500.0,0.0007589,120]
[322327562,1712955066681,-890.22,0.0007589,120]
[322327563,1712955066690,-500.0,0.0007589,120]
[322327564,1712955066700,-312.61559513,0.0007589,120]
[322327565,1712955066710,-500.0,0.0007589,120]
[322327566,1712955066720,-729.85,0.0007589,120]
[322327567,1712955066730,-772.73,0.0007589,120]
[322327568,1712955066739,-1547.65,0.0007589,120]
[322327569,1712955066749,-1540.92,0.0007589,120]
[322327570,1712955066759,-853.08,0.0007589,120]
[322327571,1712955066768,-927.97,0.0007589,120]
[322327572,1712955066778,-395.03,0.0007589,120]
[322327573,1712955066789,-3093.01,0.0007589,120]
[322327574,1712955066798,-3281.2,0.0007589,120]
[322327575,1712955066809,-500.0,0.0007589,120]
[322327576,1712955066821,-1026.41,0.0007589,120]
[322327577,1712955066831,-500.0,0.0007589,120]
[322327578,1712955066840,-2960.04,0.0007589,120]
[322327579,1712955066851,-2768.02,0.0007589,120]
[322327580,1712955066861,-500.0,0.0007589,120]
[322327581,1712955066871,-1078.82,0.0007589,120]
[322327582,1712955066892,-2212.06,0.0007589,120]
[322327583,1712955066909,-1471.15,0.0007589,120]
[322327584,1712955066918,-822.44,0.0007589,120]
[322327585,1712955066928,-1173.85,0.0007589,120]
[322327586,1712955066950,-1337.04,0.0007589,120]
[322327587,1712955066960,-500.0,0.0007589,120]
[322327588,1712955066970,-1071.4,0.0007589,120]
[322327589,1712955066979,-506.68,0.0007589,120]
[322327590,1712955066989,-36278.98,0.0007589,120]
[322327591,1712955066999,-533.59,0.0007589,120]
[322327592,1712955067009,-500.0,0.0007589,120]
[322327593,1712955067019,-572.69,0.0007589,120]
[322327594,1712955067028,-11478.24,0.0007589,120]
[322327595,1712955067039,-1168.5,0.0007589,120]
[322327596,1712955067050,-860.37,0.0007589,120]
[322327597,1712955067061,-2849.42,0.0007589,21]
[322327598,1712955067072,-1162.52,0.0007589,120]
[322327599,1712955067081,-1197.24,0.0007589,120]
[322327600,1712955067092,-920.56,0.0007589,120]
[322327601,1712955067103,-500.0,0.0007589,120]
[322327602,1712955067113,-1333.33,0.0007589,120]
[322327603,1712955067124,-2333.51,0.0007589,120]
[322327604,1712955067134,-1860.05,0.0007589,120]
[322327605,1712955067145,-1669.23,0.0007589,120]
[322327606,1712955067155,-4029.35,0.0007589,120]
[322327607,1712955067165,-1247.25,0.0007589,120]
[322327608,1712955067175,-905.0,0.00077301,120]
[322327609,1712955067186,-1000.0,0.000775,120]
[322327610,1712955067196,-7009.2530447,0.00077608,120]
[322327611,1712955067213,-369.0,0.00077808,14]
[322327612,1712955067223,-369.0,0.00077808,14]
[322327613,1712955067241,-500.0,0.00077808,120]
[322327614,1712955067253,-561.66,0.00077808,120]
[322327615,1712955067265,-870.64,0.00077808,120]
[322327616,1712955067276,-500.0,0.00077808,120]
[322327617,1712955067287,-1019.03,0.00077808,120]
[322327618,1712955067298,-500.0,0.00077808,120]
[322327619,1712955067307,-500.0,0.00077808,120]
[322327620,1712955067318,-1581.45,0.00077808,60]
[322327621,1712955067335,-666.72,0.00077808,120]
[322327622,1712955067346,-190.64025592,0.00077808,120]
[322327623,1712955067373,-890.22,0.00077808,120]
[322327624,1712955067385,-500.0,0.00077808,120]
[322327625,1712955067397,-500.0,0.00077808,120]
[322327626,1712955067407,-729.85,0.00077808,120]
[322327627,1712955067418,-772.73,0.00077808,120]
[322327628,1712955067429,-1547.65,0.00077808,120]
[322327629,1712955067440,-1540.92,0.00077808,120]
[322327630,1712955067450,-151.0,0.00077808,120]
[322327631,1712955067461,-853.08,0.00077808,120]
[322327632,1712955067475,-151.0,0.00077808,120]
[322327633,1712955067486,-927.97,0.00077808,120]
[322327634,1712955067499,-151.0,0.00077808,120]
[322327635,1712955067519,-151.0,0.00077808,120]
[322327636,1712955067531,-3093.01,0.00077808,120]
[322327637,1712955067543,-3281.2,0.00077808,120]
[322327638,1712955067556,-500.0,0.00077808,120]
[322327639,1712955067567,-1712.696431,0.00077808,120]
[322327640,1712955067583,-1712.696431,0.00077808,120]
[322327641,1712955067593,-1026.41,0.00077808,120]
[322327642,1712955067604,-500.0,0.00077808,120]
[322327643,1712955067614,-2960.04,0.00077808,120]
[322327644,1712955067625,-549.63221,0.00077808,120]
[322327645,1712955067636,-2768.02,0.00077808,120]
[322327646,1712955067646,-549.63221,0.00077808,120]
[322327647,1712955067657,-151.0,0.00077808,120]
[322327648,1712955067667,-151.0,0.00077808,120]
[322327649,1712955067677,-151.0,0.00077808,120]
[322327650,1712955067688,-1078.82,0.00077808,120]
[322327651,1712955067699,-2212.06,0.00077808,120]
[322327652,1712955067709,-1471.15,0.00077808,120]
[322327653,1712955067720,-822.44,0.00077808,120]
[322327654,1712955067730,-1173.85,0.00077808,120]
[322327655,1712955067741,-1337.04,0.00077808,120]
[322327656,1712955067751,-500.0,0.00077808,120]
[322327657,1712955067761,-1071.4,0.00077808,120]
[322327658,1712955067771,-506.68,0.00077808,120]
[322327659,1712955067780,-36278.98,0.00077808,120]
[322327660,1712955067789,-533.59,0.00077808,120]
[322327661,1712955067799,-151.0,0.00077808,120]
[322327662,1712955067808,-578.50458022,0.00077808,120]
[322327663,1712955067818,-572.69,0.00077808,120]
[322327664,1712955067829,-11478.24,0.00077808,120]
[322327665,1712955067838,-1168.5,0.00077808,120]
[322327666,1712955067847,-860.37,0.00077808,120]
[322327667,1712955067856,-2849.42,0.00077808,21]
[322327668,1712955067869,-1775.820772,0.00077808,14]
[322327669,1712955067881,-1775.820772,0.00077808,14]
[322327670,1712955067891,-151.0,0.00077808,120]
[322327671,1712955067900,-1162.52,0.00077808,120]
[322327672,1712955067909,-1197.24,0.00077808,120]
[322327673,1712955067925,-920.56,0.00077808,120]
[322327674,1712955067934,-216.456154,0.00077808,120]
[322327675,1712955067944,-216.456154,0.00077808,120]
[322327676,1712955067954,-500.0,0.00077808,120]
[322327677,1712955067964,-1333.33,0.00077808,120]
[322327678,1712955067974,-2333.51,0.00077808,120]
[322327679,1712955067983,-1860.05,0.00077808,120]
[322327680,1712955067993,-151.0,0.00077808,120]
[322327681,1712955068004,-1669.23,0.00077808,120]
[322327682,1712955068013,-4029.35,0.00077808,120]
[322327683,1712955068023,-1247.25,0.00077808,120]
[322327684,1712955068033,-160.771138,0.00077977,120]
[322327685,1712955068043,-50066.11607433,0.00078,60]
[322327686,1712955068052,-157.779687,0.0007915,2]
[322327687,1712955068062,-393.002314,0.00079308,120]
[322327688,1712955068072,-157.807356,0.00079308,120]
[322327689,1712955068081,-319.294618,0.00079308,120]
[322327690,1712955068091,-160.0,0.00079594,3]
[322327691,1712955068100,-500.0,0.00079726,120]
[322327692,1712955068110,-561.66,0.00079726,120]
[322327693,1712955068119,-870.64,0.00079726,120]
[322327694,1712955068129,-500.0,0.00079726,120]
[322327695,1712955068139,-1019.03,0.00079726,120]
[322327696,1712955068148,-500.0,0.00079726,120]
[322327697,1712955068157,-491.25530654,0.00079726,120]
[322327698,1712955068167,-1581.45,0.00079726,60]
[322327699,1712955068176,-666.72,0.00079726,120]
[322327700,1712955068187,-890.22,0.00079726,120]
[322327701,1712955068197,-500.0,0.00079726,120]
[322327702,1712955068206,-500.0,0.00079726,120]
[322327703,1712955068215,-729.85,0.00079726,120]
[322327704,1712955068224,-772.73,0.00079726,120]
[322327705,1712955068234,-1547.65,0.00079726,120]
[322327706,1712955068245,-1540.92,0.00079726,120]
[322327707,1712955068254,-853.08,0.00079726,120]
[322327708,1712955068265,-927.97,0.00079726,120]
[322327709,1712955068275,-3093.01,0.00079726,120]
[322327710,1712955068284,-3281.2,0.00079726,120]
[322327711,1712955068295,-500.0,0.00079726,120]
[322327712,1712955068305,-1026.41,0.00079726,120]
[322327713,1712955068316,-500.0,0.00079726,120]
[322327714,1712955068326,-2960.04,0.00079726,120]
[322327715,1712955068336,-2768.02,0.00079726,120]
[322327716,1712955068346,-1078.82,0.00079726,120]
[322327717,1712955068356,-2212.06,0.00079726,120]
[322327718,1712955068366,-1471.15,0.00079726,120]
[322327719,1712955068376,-822.44,0.00079726,120]
[322327720,1712955068386,-1173.85,0.00079726,120]
[322327721,1712955068397,-1337.04,0.00079726,120]
[322327722,1712955068407,-500.0,0.00079726,120]
[322327723,1712955068416,-1071.4,0.00079726,120]
[322327724,1712955068426,-506.68,0.00079726,120]
[322327725,1712955068436,-32567.71923243,0.00079726,120]
[322327726,1712955068754,-211.55365242,0.00021473,2]
[322327727,1712955068764,-1153.83463872,0.00021474,2]
[322327728,1712955069392,-1341.03066734,0.00021473,2]
[322327729,1712955069420,-4446.38515093,0.00021473,2]
[322327730,1712955069430,-8272.42878868,0.00021474,2]
[322327731,1712955069439,-1544.3902914,0.00021474,2]
[322327732,1712955069448,-240.87294261,0.00021474,2]
[322327733,1712955069457,-260.52844265,0.00021474,2]
[322327734,1712955069466,-849.62291871,0.00021474,2]
[322327735,1712955069476,-549.11981524,0.00021474,2]
[322327736,1712955069486,-3526.86715343,0.00021475,2]
[322327737,1712955069495,-687.6463722,0.00021475,2]
[322327738,1712955069505,-154.95351395,0.00021475,2]
[322327739,1712955069514,-936.73565596,0.00021475,2]
[322327740,1712955069525,-875.47790871,0.00021475,2]
[322327741,1712955069549,-2094.57281327,0.00021475,2]
[322327742,1712955069598,-6912.93110096,0.00021476,2]
[322327743,1712955069611,-1461.7738511,0.00036999,4]
[322327744,1712955069623,-264.0,0.00037,2]
[322327745,1712955069635,-153.41969524,0.00038215,2]
[322327746,1712955069647,-264.0,0.0004,2]
[322327747,1712955069660,-264.0,0.00043,2]
[322327748,1712955069672,-202.8732917,0.00045146,2]
[322327749,1712955069682,-157.3428264,0.00054795,120]
[322327750,1712955069692,-157.3428264,0.00054795,120]
[322327751,1712955069712,-157.3428264,0.00054795,120]
[322327752,1712955069722,-157.3428264,0.00054795,120]
[322327753,1712955069732,-157.3428264,0.00054795,120]
[322327754,1712955069767,-157.3428264,0.00054795,120]
[322327755,1712955069786,-157.84,0.00054795,120]
[322327756,1712955069800,-503.57204449,0.00054795,120]
[322327757,1712955069810,-503.57204449,0.00054795,120]
[322327758,1712955069848,-503.57204449,0.00054795,120]
[322327759,1712955069872,-503.57204449,0.00054795,120]
[322327760,1712955069889,-503.57204449,0.00054795,120]
[322327761,1712955069900,-503.57204449,0.00054795,120]
[322327762,1712955069912,-503.57204449,0.00054795,120]
[322327763,1712955069927,-503.57204449,0.00054795,120]
[322327764,1712955069942,-503.57204449,0.00054795,120]
[322327765,1712955069952,-503.57204449,0.00054795,120]
[322327766,1712955069961,-503.57204449,0.00054795,120]
[322327767,1712955069972,-503.57204449,0.00054795,120]
[322327768,1712955069983,-503.57204449,0.00054795,120]
[322327769,1712955069993,-503.57204449,0.00054795,120]
[322327770,1712955070006,-1838.38,0.00066301,120]
[322327771,1712955070015,-1838.38,0.00068219,120]
[322327772,1712955070026,-1838.38,0.00070136,120]
[322327773,1712955070036,-1838.38,0.00072054,120]
[322327774,1712955070047,-1838.38,0.00073972,120]
[322327775,1712955070057,-8655.52,0.0007589,120]
[322327776,1712955070070,-1838.38,0.0007589,120]
[322327777,1712955070082,-8655.52,0.00077808,120]
[322327778,1712955070093,-1838.38,0.00077808,120]
[322327779,1712955070103,-3711.26076757,0.00079726,120]
[322327780,1712955070114,-533.59,0.00079726,120]
[322327781,1712955070124,-572.69,0.00079726,120]
[322327782,1712955070134,-11478.24,0.00079726,120]
[322327783,1712955070144,-1168.5,0.00079726,120]
[322327784,1712955070153,-860.37,0.00079726,120]
[322327785,1712955070163,-2849.42,0.00079726,21]
[322327786,1712955070173,-1162.52,0.00079726,120]
[322327787,1712955070182,-1197.24,0.00079726,120]
[322327788,1712955070192,-920.56,0.00079726,120]
[322327789,1712955070202,-445.53087443,0.00079726,120]
[322327790,1712955070212,-1333.33,0.00079726,120]
[322327791,1712955070222,-2333.51,0.00079726,120]
[322327792,1712955070232,-1860.05,0.00079726,120]
[322327793,1712955070241,-1669.23,0.00079726,120]
[322327794,1712955070251,-1247.25,0.00079726,120]
[322327795,1712955070260,-4029.35,0.00079726,120]
[322327796,1712955070270,-8655.52,0.00079726,120]
[322327797,1712955070279,-1838.38,0.00079726,120]
[322327798,1712955070289,-10000.0,0.000799,120]
[322327799,1712955070298,-1000.0,0.00079999,120]
[322327800,1712955070309,-500.0,0.00079999,120]
[322327801,1712955070319,-500.0,0.00079999,120]
[322327802,1712955070329,-500.0,0.00079999,120]
[322327803,1712955070339,-500.0,0.00079999,120]
[322327804,1712955070348,-616.50500625,0.00079999,120]
[322327805,1712955070357,-500.0,0.00079999,120]
[322327806,1712955070367,-500.0,0.00079999,120]
[322327807,1712955070376,-235.88765894,0.00079999,120]
[322327808,1712955070465,-500.0,0.00079999,120]
[322327809,1712955070476,-500.0,0.00079999,120]
[322327810,1712955070486,-500.0,0.00079999,120]
[322327811,1712955070496,-500.0,0.00079999,120]
[322327812,1712955070506,-500.0,0.00079999,120]
[322327813,1712955070516,-500.0,0.00079999,120]
[322327814,1712955070526,-500.0,0.00079999,120]
[322327815,1712955070536,-500.0,0.00079999,120]
[322327816,1712955070545,-107.07401158,0.00079999,120]
[322327817,1712955070559,-351.11807241,0.00079999,120]
[322327818,1712955070572,-41.80791601,0.00079999,120]
[322327819,1712955070583,-500.0,0.00079999,120]
[322327820,1712955070593,-472.81987027,0.00079999,120]
[322327821,1712955070721,925.5318754,0.000204,2]
[322327833,1712955211275,4000000.0,0.00038291,60]
[322327834,1712955233868,18471.18178489,0.0002,2]
[322327835,1712955260429,2999.70533759,0.000125,2]
[322327836,1712955273445,183.49001289,0.000191,2]
[322327850,1712955280341,14567.28062908,0.00021,2]
[322327851,1712955280369,21183.3442581,0.00021,2]
[322327856,1712955393235,169.819541,0.00020197,2]
[322327864,1712955497326,2368.53138688,0.00020197,2]
[322327865,1712955566142,263.3003031,0.00020444,2]
[322327866,1712955626365,284.61768547,0.00020444,2]
[322327867,1712955768428,24900.0,0.00020228,2]
[322327868,1712955770432,250.0,0.00020227,2]
[322327871,1712955859170,1176.680054,0.00020118,2]
[322327872,1712955922499,176.169986,0.00019837,2]
[322327884,1712956007564,1594.83456148,0.00020995,2]
[322327946,1712956056630,2292.15425904,0.00020989,2]
[322327963,1712956200017,1395.48024126,0.00020968,2]
[322327989,1712956232595,-3967.94157,0.00021058,2]
[322328018,1712956238528,-18793.13558403,0.00021058,2]
[322328019,1712956238539,-467.23792428,0.00021058,2]
[322328020,1712956238549,-538.59791891,0.00021058,2]
[322328021,1712956238559,-225.63849083,0.00021058,2]
[322328022,1712956238568,-215.92726216,0.00021058,2]
[322328023,1712956238577,-9426.2634274,0.00021058,2]
[322328024,1712956238587,-2937.70369238,0.00021058,2]
[322328025,1712956238597,-1931.90571888,0.00021059,2]
[322328026,1712956238606,-1087.97739489,0.00021059,2]
[322328027,1712956238617,-1494.36779976,0.00021059,2]
[322328028,1712956238626,-155.0,0.00021059,2]
[322328029,1712956238635,-304.0246345,0.00021059,2]
[322328030,1712956238645,-3738.27761337,0.00021059,2]
[322328031,1712956238654,-407.97119397,0.0002106,2]
[322328032,1712956238663,-563.18202203,0.0002106,2]
[322328033,1712956238673,-470.34138776,0.0002106,2]
[322328034,1712956238682,-874.98344823,0.0002106,2]
[322328035,1712956238691,-473.53133438,0.0002106,2]
[322328036,1712956238701,-1854.77424007,0.00021061,2]
[322328038,1712956238711,-240.87294261,0.00021061,2]
[322328040,1712956238721,-700.69294619,0.00021061,2]
[322328042,1712956238730,-157.38490406,0.00021061,2]
[322328043,1712956238740,-2581.83470807,0.00021062,2]
[322328044,1712956238749,-260.52844265,0.00021062,2]
[322328045,1712956238758,-936.73565596,0.00021062,2]
[322328046,1712956238768,-155.0,0.00021062,2]
[322328047,1712956238777,-2122.71055525,0.00021062,2]
[322328048,1712956238786,-155.0,0.00021062,2]
[322328049,1712956238795,-500.0,0.00021062,2]
[322328050,1712956238805,-282.52694059,0.00021062,2]
[322328051,1712956238814,-1965.39904468,0.00021063,2]
[322328052,1712956238822,-300.0,0.00021063,2]
[322328053,1712956238832,-1308.46081651,0.00021063,2]
[322328054,1712956238841,-300.0,0.00021063,2]
[322328055,1712956238850,-925.5318754,0.00021063,2]
[322328056,1712956238859,-2617.86637794,0.00021063,2]
[322328057,1712956238868,-2767.57096529,0.00021063,2]
[322328058,1712956238878,-875.47790871,0.00021063,2]
[322328059,1712956238887,-2094.57281327,0.00021064,2]
[322328060,1712956238898,-887.37861442,0.00021064,2]
[322328061,1712956238907,-263.61360044,0.00021064,2]
[322328062,1712956238916,-326.62746288,0.00021064,2]
[322328063,1712956238926,-525.07637197,0.00021064,2]
[322328064,1712956238935,-155.0,0.00021064,2]
[322328065,1712956238944,-156.67063917,0.00021065,2]
[322328066,1712956238954,-181.18098361,0.00021065,2]
[322328067,1712956238963,-277.24658734,0.00021065,2]
[322328068,1712956238972,-1043.5168995,0.00021065,2]
[322328069,1712956238981,-549.11981524,0.00021065,2]
[322328070,1712956238990,-207.39373908,0.00021065,2]
[322328071,1712956238999,-211.87247077,0.00021065,2]
[322328072,1712956239009,-601.81614276,0.00021066,2]
[322328073,1712956239019,-59022.10944715,0.00021066,2]
[322328074,1712956239028,-224.45584399,0.00021115,2]
[322328075,1712956239037,-209.09087823,0.00021449,2]
[322328076,1712956239046,-155.31329199,0.00021474,2]
[322328077,1712956239055,-158.62437047,0.00022,2]
[322328078,1712956239064,-389.90432596,0.0002229,2]
[322328079,1712956239074,-287.0,0.0002291,2]
[322328080,1712956239084,-242.92908465,0.00023,2]
[322328081,1712956239093,-287.0,0.00023169,2]
[322328082,1712956239102,-2292.15425904,0.00023639,2]
[322328083,1712956239111,-380.0,0.00024658,2]
[322328084,1712956239120,-5570.46935089,0.00024993,2]
[322328085,1712956239129,-924.03970052,0.00025,2]
[322328086,1712956239138,-156.87945876,0.00025,2]
[322328087,1712956239147,-724.34732689,0.00025,2]
[322328088,1712956239156,-2292.15425904,0.0002629,2]
[322328089,1712956239165,-629.79840157,0.00026784,2]
[322328090,1712956239175,-13636.37733717,0.00027,2]
[322328091,1712956239184,-500.0,0.00027397,2]
[322328092,1712956239193,-500.0,0.00027397,2]
[322328093,1712956239202,-619.02609081,0.00027397,2]
[322328094,1712956239211,-500.0,0.00027397,2]
[322328095,1712956239221,-158.464888,0.00027397,2]
[322328096,1712956239230,-204.666181,0.00027397,2]
[322328097,1712956239240,-175.6790731,0.00027397,2]
[322328100,1712956239251,-166.666666,0.00027397,2]
[322328102,1712956239261,-754.55579857,0.000274,2]
[322328104,1712956239271,-973.1152521,0.000274,2]
[322328106,1712956239281,-37384.61652286,0.000275,2]
[322328108,1712956239293,-2000.0,0.000275,2]
[322328110,1712956239303,-2000.0,0.0002751,2]
[322328112,1712956239312,-2000.0,0.0002752,2]
[322328114,1712956239322,-3829.472776,0.0002753,2]
[322328117,1712956239331,-166.666666,0.00028038,2]
[322328120,1712956239341,-620.48992008,0.00028124,2]
[322328121,1712956239350,-166.666666,0.00028679,2]
[322328123,1712956239360,-160700.31948814,0.0002877,2]
[322328126,1712956239370,-2292.15425904,0.0002894,2]
[322328127,1712956239379,-841.30748344,0.00029,2]
[322328130,1712956239389,-166.666666,0.00029321,2]
[322328145,1712956239529,-1230.51077854,0.0002978,10]
[322328147,1712956239539,-166.666666,0.00029962,2]
[322328149,1712956239549,-23821.52581773,0.00029987,2]
[322328151,1712956239558,-154.95351395,0.0003,4]
[322328153,1712956239568,-168.46845759,0.0003,2]
[322328155,1712956239578,-25107.46000052,0.0003,5]
[322328157,1712956239587,-378.47834325,0.0003,10]
[322328159,1712956239596,-1830.26762363,0.0003,2]
[322328161,1712956239605,-575.30850565,0.0003,2]
[322328164,1712956239616,-7651.95374345,0.0003,10]
[322328165,1712956239625,-37974.03180068,0.0003,7]
[322328168,1712956239635,-338.0,0.0003,2]
[322328170,1712956239644,-1176.680054,0.00030176,2]
[322328172,1712956239654,-166.666666,0.00030603,2]
[322328174,1712956239663,-4447.00071033,0.00030646,4]
[322328175,1712956239674,-546.54670919,0.00030954,4]
[322328178,1712956239684,-248.80539639,0.00030954,4]
[322328180,1712956239694,-422.58196284,0.00030954,4]
[322328182,1712956239703,-799.89148177,0.00030954,31]
[322328183,1712956239713,-155.93292713,0.00030955,4]
[322328186,1712956239722,-2000.0,0.000315,2]
[322328188,1712956239732,-2000.0,0.0003151,2]
[322328190,1712956239741,-2000.0,0.0003152,2]
[322328192,1712956239750,-2000.0,0.0003153,2]
[322328194,1712956239759,-2000.0,0.0003154,2]
[322328196,1712956239770,-2000.0,0.0003155,2]
[322328198,1712956239780,-2000.0,0.0003156,2]
[322328200,1712956239789,-2000.0,0.0003157,2]
[322328202,1712956239798,-2000.0,0.0003158,2]
[322328204,1712956239807,-2000.0,0.0003159,2]
[322328206,1712956239816,-2292.15425904,0.0003159,2]
[322328208,1712956239826,-2000.0,0.000316,2]
[322328210,1712956239836,-2000.0,0.0003161,2]
[322328212,1712956239845,-2000.0,0.0003162,2]
[322328214,1712956239854,-2000.0,0.0003163,2]
[322328216,1712956239863,-2000.0,0.0003164,2]
[322328218,1712956239872,-2000.0,0.0003165,2]
[322328220,1712956239881,-2000.0,0.0003166,2]
[322328221,1712956239890,-2000.0,0.0003167,2]
[322328223,1712956239899,-2000.0,0.0003168,2]
[322328225,1712956239909,-2853.027299,0.0003169,2]
[322328227,1712956239919,-1395.48024124,0.00031857,5]
[322328229,1712956239930,-190.9330142,0.00032,4]
[322328231,1712956239939,-1212.00001212,0.00032,5]
[322328233,1712956239948,-1212.12121212,0.00032,5]
[322328235,1712956239958,-651.57439407,0.00032734,30]
[322328237,1712956239967,-24208.99055251,0.00032999,2]
[322328240,1712956239977,-204.666181,0.00033165,2]
[322328242,1712956239986,-1212.00001212,0.0003392,5]
[322328244,1712956239996,-1212.12121212,0.0003392,5]
[322328246,1712956240006,-465.00692251,0.00034,4]
[322328247,1712956240018,-1267.46018084,0.00034728,12]
[322328249,1712956240027,-3674.8196753,0.000349,2]
[322328251,1712956240037,-584.82871279,0.00034999,2]
[322328253,1712956240046,-161.66972791,0.00034999,4]
[322328255,1712956240055,-154.95351395,0.00035,4]
[322328257,1712956240064,-669.27025172,0.00035,4]
[322328259,1712956240073,-596.49961109,0.00035,2]
[322328261,1712956240083,-1152.27649774,0.00035,30]
[322328263,1712956240092,-2191.919775,0.00035,4]
[322328265,1712956240101,-320.00259191,0.00035,30]
[322328267,1712956240111,-6861.21270692,0.00035,4]
[322328269,1712956240121,-186.12879623,0.00035,30]
[322328271,1712956240130,-257.00435595,0.00035,2]
[322328273,1712956240140,-26607.99126198,0.00035,7]
[322328275,1712956240150,-2751.65294476,0.00035,120]
[322328277,1712956240161,-1504.11646253,0.00035455,14]
[322328279,1712956240172,-304.3196448,0.00035616,120]
[322328281,1712956240182,-5000.0,0.000357,3]
[322328283,1712956240191,-1333.20001333,0.0003584,9]
[322328285,1712956240200,-1333.33333333,0.0003584,9]
[322328287,1712956240210,-154.95351395,0.0003589,2]
[322328289,1712956240219,-10943.33073291,0.00036,5]
[322328291,1712956240228,-2543.89584867,0.00036191,2]
[322328294,1712956240238,-255.75303422,0.0003624,2]
[322328295,1712956240247,-155.44420196,0.00036997,4]
[322328298,1712956240256,-402.57242921,0.00036997,4]
[322328300,1712956240268,-155.91411964,0.00036998,4]
[322328302,1712956240277,-402.46261145,0.00036998,4]
[322328304,1712956240286,-155.53592522,0.00036998,4]
[322328306,1712956240295,-174.85908564,0.00036999,4]
[322328308,1712956240305,-2044.91142934,0.00037,2]
[322328309,1712956240317,-9154.10189308,0.00037,40]
[322328312,1712956240327,-1333.20001333,0.0003776,9]
[322328314,1712956240336,-1333.33333333,0.0003776,9]
[322328315,1712956240346,-10026.92839032,0.00038,2]
[322328318,1712956240357,-612.79617319,0.00038356,7]
[322328319,1712956240366,-204.666181,0.00038933,2]
[322328321,1712956240375,-13435.42566788,0.00038999,3]
[322328323,1712956240386,-651659.70930627,0.00039264,60]
[322328326,1712956240399,-6423.5036546,0.00039264,60]
[322328328,1712956240410,-1940.14940415,0.00039264,60]
[322328330,1712956240421,-9473.54620172,0.00039264,60]
[322328814,1712956245116,-1486.82464434,0.00021057,2]
[322328816,1712956245125,-188.75485878,0.00021057,2]
[322328818,1712956245135,-5787.41581827,0.00021057,2]
[322328820,1712956245144,-181.18098361,0.00021057,2]
[322328822,1712956245153,-156.67063917,0.00021057,2]
[322328824,1712956245162,-5600.45148607,0.00039264,60]
[322328827,1712956245175,-3309.08913917,0.00039264,60]
[322329068,1712956248534,-166.30230481,0.00021065,2]
[322329069,1712956248543,-578.31351513,0.00024992,2]
[322329071,1712956248552,-25847.92614852,0.00039264,60]
[322329073,1712956248563,-81483.8582461,0.00039264,60]
[322329080,1712956248655,-6436.44270201,0.00039264,60]
[322334119,1712956302349,-3000.0,0.00039262,120]
[322344634,1712956738636,261.78203323,0.000267,120]
[322344635,1712956738670,630.21796677,0.000267,120]
[322344950,1712957233804,24900.0,0.00020963,2]
[322344951,1712957286291,250.0,0.00020955,2]